bitfinex/quotes_BTCUSD_20240908
["timestamp","ask_amount","ask_price","bid_price","bid_amount"]
[1725827492422,0.46903378,54446.0,54445.0,0.09983]
[1725827492669,0.47003378,54446.0,54445.0,0.10683]
[1725827492886,0.47003378,54446.0,54445.0,0.09983]
[1725827493328,0.76490278,54446.0,54445.0,0.10583]
[1725827493553,0.76390278,54446.0,54445.0,0.09983]
[1725827493767,0.76290278,54446.0,54445.0,0.09383]
[1725827493981,0.76390278,54446.0,54445.0,0.10583]
[1725827494371,0.76390278,54446.0,54445.0,0.10083]
[1725827494721,0.76490278,54446.0,54445.0,0.10683]
[1725827496017,1.18558469,54446.0,54445.0,0.01463]
[1725827496208,1.48672785,54446.0,54445.0,0.01463]
[1725827496378,1.26407378,54446.0,54445.0,0.01463]
[1725827496587,1.40135607,54446.0,54445.0,0.01463]
[1725827496786,1.26407378,54446.0,54445.0,0.01463]
[1725827498066,1.23067178,54446.0,54445.0,0.01463]
[1725827498236,1.26217293,54446.0,54445.0,0.01463]
[1725827502995,1.26137153,54446.0,54445.0,0.01463]
[1725827505945,1.18947153,54446.0,54445.0,0.01463]
[1725827506175,1.15877178,54446.0,54445.0,0.01463]
[1725827506391,1.24113217,54446.0,54445.0,0.01463]
[1725827506813,1.30229845,54446.0,54445.0,0.01463]
[1725827507029,1.15877178,54446.0,54445.0,0.01463]
[1725827507462,1.30066252,54446.0,54445.0,0.01463]
[1725827507898,1.19084671,54446.0,54445.0,0.01463]
[1725827508595,1.19202866,54446.0,54445.0,0.01463]
[1725827509028,1.3292945,54446.0,54445.0,0.01463]
[1725827511594,1.19202866,54446.0,54445.0,0.01463]
[1725827511798,1.3292945,54446.0,54445.0,0.01463]
[1725827512211,1.04509466,54446.0,54445.0,0.01463]
[1725827512436,1.15877178,54446.0,54445.0,0.01463]
[1725827514278,1.19126955,54446.0,54445.0,0.01463]
[1725827516724,1.26495655,54446.0,54445.0,0.01463]
[1725827516955,1.37478058,54446.0,54445.0,0.01463]
[1725827519637,1.23772577,54446.0,54445.0,0.01463]
[1725827519839,1.26523717,54446.0,54445.0,0.01463]
[1725827521736,1.35363856,54446.0,54445.0,0.01463]
[1725827522190,1.46346259,54446.0,54445.0,0.01463]
[1725827523590,1.8426358,54446.0,54445.0,0.01463]
[1725827523845,1.72980756,54446.0,54445.0,0.01463]
[1725827524333,1.40252286,54446.0,54445.0,0.01463]
[1725827524574,1.31311567,54446.0,54445.0,0.00763]
[1725827524789,1.31311567,54446.0,54445.0,0.07973]
[1725827524790,1.2307394,54446.0,54445.0,0.07973]
[1725827525021,1.31313538,54446.0,54445.0,0.08473]
[1725827525236,1.31313538,54446.0,54445.0,0.07373]
[1725827525237,1.31213538,54446.0,54445.0,0.07373]
[1725827525470,1.31313538,54446.0,54445.0,0.07773]
[1725827525708,1.2297394,54446.0,54445.0,0.07773]
[1725827526153,1.2297394,54446.0,54445.0,0.08073]
[1725827526389,1.27210111,54446.0,54445.0,0.07773]
[1725827526617,1.38193759,54446.0,54445.0,0.07773]
[1725827526839,1.38193759,54446.0,54445.0,0.07373]
[1725827527271,1.38193759,54446.0,54445.0,0.07773]
[1725827527721,1.27210111,54446.0,54445.0,0.08273]
[1725827527931,1.27210111,54446.0,54445.0,0.07773]
[1725827528366,1.27210111,54446.0,54445.0,0.08273]
[1725827528598,1.27291611,54446.0,54445.0,0.08273]
[1725827528813,0.97904711,54446.0,54445.0,0.17013]
[1725827529035,0.97904711,54446.0,54445.0,0.16113]
[1725827529499,0.97904711,54446.0,54445.0,0.16813]
[1725827530159,1.27291611,54446.0,54445.0,0.16813]
[1725827530373,1.27291611,54446.0,54445.0,0.16513]
[1725827530625,1.27291611,54446.0,54445.0,0.16113]
[1725827530854,1.3613175,54446.0,54445.0,0.00163]
[1725827531292,1.36096367,54446.0,54445.0,0.00163]
[1725827531505,1.52593953,54446.0,54445.0,0.00463]
[1725827531924,1.47577453,54446.0,54445.0,0.00763]
[1725827533941,1.36096367,54446.0,54445.0,0.00763]
[1725827536327,1.36020673,54446.0,54445.0,0.00763]
[1725827543044,1.35974291,54446.0,54445.0,0.00763]
[1725827543952,1.4740375,54446.0,54445.0,0.00763]
[1725827548914,1.38563611,54446.0,54445.0,0.16803]
[1725827550311,1.43646792,54446.0,54445.0,0.16803]
[1725827551435,1.43985268,54446.0,54445.0,0.16803]
[1725827554358,1.39180994,54446.0,54445.0,0.16803]
[1725827554573,1.4398539,54446.0,54445.0,0.16803]
[1725827555888,1.39233597,54446.0,54445.0,0.16803]
[1725827556320,1.38780136,54446.0,54445.0,0.16803]
[1725827559887,1.38780136,54446.0,54445.0,0.09793]
[1725827560122,1.38780136,54446.0,54445.0,0.00763]
[1725827560123,1.5730296,54446.0,54445.0,0.00763]
[1725827561303,1.57181789,54446.0,54445.0,0.00763]
[1725827562439,1.86568689,54446.0,54445.0,0.00763]
[1725827564865,1.73537909,54446.0,54445.0,0.00763]
[1725827565094,1.68045865,54446.0,54445.0,0.00763]
[1725827566260,1.67970634,54446.0,54445.0,0.00763]
[1725827570972,1.38583734,54446.0,54445.0,0.00763]
[1725827571818,1.67970634,54446.0,54445.0,0.00763]
[1725827574938,1.38583734,54446.0,54445.0,0.00763]
[1725827576035,1.42027729,54446.0,54445.0,0.00763]
[1725827576278,1.45345259,54446.0,54445.0,0.07723]
[1725827576615,1.58771858,54446.0,54445.0,0.07723]
[1725827576834,1.42270254,54446.0,54445.0,0.07723]
[1725827577462,1.45345534,54446.0,54445.0,0.07723]
[1725827582058,1.45345534,54446.0,54445.0,0.00763]
[1725827582059,1.42254559,54446.0,54445.0,0.00763]
[1725827586273,1.71641459,54446.0,54445.0,0.00763]
[1725827589570,1.84832239,54446.0,54445.0,0.00763]
[1725827589815,2.08887783,54446.0,54445.0,0.00763]
[1725827590474,1.90324283,54446.0,54445.0,0.00763]
[1725827590892,1.90524283,54446.0,54445.0,0.00763]
[1725827591105,1.91524283,54446.0,54445.0,0.00763]
[1725827591738,2.85340083,54446.0,54445.0,0.00763]
[1725827592407,2.56248983,54446.0,54445.0,0.00763]
[1725827593570,2.26862083,54446.0,54445.0,0.00463]
[1725827593776,2.26862083,54446.0,54445.0,0.00263]
[1725827593777,2.28062083,54446.0,54445.0,0.00263]
[1725827594217,2.57448983,54446.0,54445.0,0.00263]
[1725827594446,2.14935199,54446.0,54445.0,0.00263]
[1725827595077,2.16135199,54446.0,54445.0,0.00363]
[1725827595527,2.14935199,54446.0,54445.0,0.00263]
[1725827595746,2.16135199,54446.0,54445.0,0.00363]
[1725827596697,2.14935199,54446.0,54445.0,0.00263]
[1725827597937,2.16135199,54446.0,54445.0,0.00363]
[1725827598177,2.16135199,54446.0,54445.0,0.00263]
[1725827598410,2.16135199,54446.0,54445.0,0.00363]
[1725827598616,2.17335199,54446.0,54445.0,0.00363]
[1725827602113,2.49273499,54446.0,54445.0,0.00363]
[1725827602969,2.18586052,54446.0,54445.0,0.00363]
[1725827603215,2.18362481,54446.0,54445.0,0.00363]
[1725827603453,2.18362481,54446.0,54439.0,0.00163]
[1725827603454,1.702155,54440.0,54439.0,0.00163]
[1725827603681,1.91672022,54440.0,54439.0,0.00163]
[1725827603901,1.334577,54439.0,54438.0,0.00163]
[1725827604124,2.35922962,54439.0,54438.0,0.00163]
[1725827604348,2.32343962,54439.0,54438.0,0.00163]
[1725827604557,2.32235402,54439.0,54438.0,0.00163]
[1725827604778,2.48717334,54439.0,54438.0,0.00163]
[1725827604991,2.32235402,54439.0,54438.0,0.00163]
[1725827605230,2.34775402,54439.0,54438.0,0.00163]
[1725827605429,2.22077402,54439.0,54438.0,0.00163]
[1725827606490,2.22477402,54439.0,54438.0,0.00163]
[1725827607382,1.90781902,54439.0,54438.0,0.07683]
[1725827607604,2.03659597,54439.0,54438.0,0.16763]
[1725827607816,1.87183251,54439.0,54438.0,0.16763]
[1725827608024,1.87183251,54439.0,54438.0,0.09243]
[1725827608493,1.87383251,54439.0,54438.0,0.09243]
[1725827608927,1.90041989,54439.0,54438.0,0.09243]
[1725827610258,1.74346689,54439.0,54438.0,0.09243]
[1725827610485,1.89041989,54439.0,54438.0,0.09243]
[1725827614163,1.96412989,54439.0,54438.0,0.09243]
[1725827615955,1.96412989,54439.0,54438.0,0.00163]
[1725827616433,1.322748,54432.0,54431.0,0.166]
[1725827616642,1.56209751,54432.0,54431.0,0.166]
[1725827617098,1.69733259,54432.0,54431.0,0.166]
[1725827617311,1.72614562,54432.0,54431.0,0.166]
[1725827617742,1.72614562,54432.0,54431.0,0.171]
[1725827618190,1.72614562,54432.0,54431.0,0.0958]
[1725827618418,1.58891054,54432.0,54431.0,0.0958]
[1725827618664,1.58891054,54432.0,54431.0,0.0998]
[1725827619083,1.58891054,54432.0,54431.0,0.005]
[1725827619308,1.58686444,54432.0,54431.0,0.005]
[1725827619522,1.58686444,54432.0,54431.0,0.006]
[1725827619970,1.322797,54430.0,54429.0,0.0932]
[1725827620198,1.46969902,54430.0,54429.0,0.0932]
[1725827621530,1.50367068,54430.0,54429.0,0.0942]
[1725827622317,1.51067068,54430.0,54429.0,0.0942]
[1725827623745,1.50367068,54430.0,54429.0,0.0932]
[1725827623951,1.50367068,54430.0,54429.0,0.0942]
[1725827624128,1.50932234,54430.0,54429.0,0.0942]
[1725827625725,1.50232234,54430.0,54429.0,0.0932]
[1725827625940,1.49532234,54430.0,54429.0,0.0932]
[1725827626153,1.50232234,54430.0,54429.0,0.0942]
[1725827626381,1.50932234,54430.0,54429.0,0.0952]
[1725827626831,1.6669206,54430.0,54429.0,0.0942]
[1725827627049,1.6669206,54430.0,54429.0,0.1649]
[1725827627287,1.50932234,54430.0,54429.0,0.1659]
[1725827628019,1.59772373,54430.0,54429.0,0.1659]
[1725827629151,1.67143573,54430.0,54429.0,0.1659]
[1725827631706,1.83603399,54430.0,54429.0,0.1659]
[1725827632861,1.58303434,54430.0,54429.0,0.1659]
[1725827633099,1.21536734,54430.0,54429.0,0.1659]
[1725827633336,1.21536734,54430.0,54429.0,0.16753]
[1725827634044,1.20136734,54430.0,54429.0,0.16553]
[1725827634271,1.20836734,54430.0,54429.0,0.16653]
[1725827634511,0.29253068,54430.0,54429.0,0.17553]
[1725827634740,0.246977,54430.0,54429.0,0.17553]
[1725827634987,0.543932,54430.0,54429.0,0.17553]
[1725827636115,0.550932,54430.0,54429.0,0.17653]
[1725827636355,0.547932,54430.0,54429.0,0.17653]
[1725827636581,0.541932,54430.0,54429.0,0.18901397]
[1725827636804,0.541932,54430.0,54429.0,0.19001397]
[1725827637030,0.541932,54430.0,54429.0,0.19901397]
[1725827637256,0.542932,54430.0,54429.0,0.19901397]
[1725827638093,0.248977,54430.0,54429.0,0.19901397]
[1725827640225,0.836887,54430.0,54429.0,0.19901397]
[1725827640433,0.542932,54430.0,54429.0,0.19901397]
[1725827640651,0.542932,54430.0,54429.0,0.19253]
[1725827641069,0.542932,54430.0,54429.0,0.19901397]
[1725827642026,0.59786346,54430.0,54429.0,0.19901397]
[1725827642467,0.542932,54430.0,54429.0,0.19253]
[1725827642682,0.59786014,54430.0,54429.0,0.19253]
[1725827642928,0.542932,54430.0,54429.0,0.19253]
[1725827645498,0.542932,54430.0,54429.0,0.19897696]
[1725827649542,0.002,54430.0,54429.0,0.30727605]
[1725827649751,0.002,54430.0,54429.0,0.74821605]
[1725827649978,0.147771,54438.0,54436.0,0.1604]
[1725827650207,0.000815,54438.0,54437.0,0.27953789]
[1725827650433,0.147771,54438.0,54437.0,0.25519395]
[1725827650902,0.147771,54438.0,54437.0,0.26419395]
[1725827651340,0.148771,54438.0,54437.0,0.27219395]
[1725827651773,0.248771,54438.0,54437.0,0.27119395]
[1725827652001,0.101815,54438.0,54437.0,0.18279256]
[1725827652228,0.248771,54438.0,54437.0,0.18279256]
[1725827652918,0.249771,54438.0,54437.0,0.19279256]
[1725827658943,0.249771,54438.0,54437.0,0.19484406]
[1725827662719,0.102815,54438.0,54437.0,0.19484406]
[1725827662968,0.249771,54438.0,54437.0,0.19484406]
[1725827664309,0.543683,54438.0,54437.0,0.19484406]
[1725827664750,0.543683,54438.0,54437.0,0.1864]
[1725827665169,0.543683,54438.0,54437.0,0.1948441]
[1725827669136,0.543683,54438.0,54437.0,0.1964741]
[1725827671503,0.38238795,54438.0,54437.0,0.1964741]
[1725827672315,0.52934395,54438.0,54437.0,0.1964741]
[1725827672950,0.1,54438.0,54437.0,0.21612151]
[1725827673164,0.02962632,54439.0,54438.0,0.1745]
[1725827673395,0.17657932,54439.0,54438.0,0.18660552]
[1725827673598,0.27657932,54439.0,54438.0,0.18293202]
[1725827673801,0.27657932,54439.0,54438.0,0.22905686]
[1725827674223,0.02962632,54439.0,54438.0,0.46441425]
[1725827674648,0.03062632,54439.0,54438.0,0.47441425]
[1725827674872,0.03162632,54439.0,54438.0,0.48341425]
[1725827675279,0.03162632,54439.0,54438.0,0.33645825]
[1725827675475,0.03162632,54439.0,54438.0,0.34013164]
[1725827677245,0.03162632,54439.0,54438.0,0.48708764]
[1725827679169,0.03162632,54439.0,54438.0,1.36515025]
[1725827679587,0.002815,54439.0,54438.0,1.36515025]
[1725827680268,0.001815,54439.0,54438.0,1.35615025]
[1725827680688,0.001815,54439.0,54438.0,1.37015025]
[1725827680902,0.001815,54439.0,54438.0,1.36015025]
[1725827681127,0.001815,54439.0,54438.0,1.34615025]
[1725827681372,0.003815,54439.0,54438.0,1.37415025]
[1725827683248,0.000815,54439.0,54438.0,1.34615025]
[1725827683465,0.000815,54439.0,54438.0,1.37315025]
[1725827683676,0.000815,54439.0,54438.0,1.35915025]
[1725827683926,0.000815,54439.0,54438.0,1.34615025]
[1725827684135,0.000815,54439.0,54438.0,1.36015025]
[1725827684348,0.000815,54439.0,54438.0,1.37415025]
[1725827685209,0.000815,54439.0,54438.0,0.40401286]
[1725827685444,0.147768,54439.0,54438.0,0.2025]
[1725827685677,0.294721,54439.0,54438.0,0.2025]
[1725827685922,0.294721,54439.0,54438.0,0.038]
[1725827685923,0.73558,54439.0,54438.0,0.038]
[1725827686783,0.73558,54439.0,54438.0,0.024]
[1725827687008,0.73558,54439.0,54438.0,0.019]
[1725827687248,0.73558,54439.0,54438.0,0.027]
[1725827687466,0.73558,54439.0,54438.0,0.029713]
[1725827687708,0.73558,54439.0,54438.0,0.027713]
[1725827688144,0.73558,54439.0,54438.0,0.020713]
[1725827688356,0.73558,54439.0,54438.0,0.028713]
[1725827688571,0.73558,54439.0,54438.0,0.020713]
[1725827688952,0.73558,54439.0,54438.0,0.027713]
[1725827689453,0.73558,54439.0,54438.0,0.023]
[1725827690708,0.73558,54439.0,54438.0,0.016]
[1725827690912,0.73558,54439.0,54438.0,0.024]
[1725827691121,1.029486,54439.0,54438.0,0.016]
[1725827691324,1.101386,54439.0,54438.0,0.006]
[1725827691576,1.39971943,54439.0,54438.0,0.013]
[1725827691794,1.39971943,54439.0,54438.0,0.006]
[1725827692213,1.39971943,54439.0,54438.0,0.012]
[1725827692459,1.31730347,54439.0,54438.0,0.006]
[1725827692743,1.83921826,54439.0,54438.0,0.006]
[1725827692954,1.438004,54438.0,54437.0,0.00163]
[1725827693160,1.87150718,54438.0,54437.0,0.00163]
[1725827693824,1.87350718,54438.0,54437.0,0.00163]
[1725827694321,1.9509851,54438.0,54437.0,0.00163]
[1725827694531,1.9549851,54438.0,54437.0,0.00163]
[1725827694772,3.29852157,54438.0,54437.0,0.00163]
[1725827695000,3.30052157,54438.0,54437.0,0.00163]
[1725827695475,3.30895324,54438.0,54437.0,0.00163]
[1725827695689,3.30495324,54438.0,54437.0,0.00163]
[1725827695899,3.4263054,54438.0,54437.0,0.00163]
[1725827696123,3.40894005,54438.0,54437.0,0.00163]
[1725827696327,3.12421116,54438.0,54437.0,0.00163]
[1725827696541,3.12421116,54438.0,54437.0,0.00263]
[1725827696542,3.13321116,54438.0,54437.0,0.00263]
[1725827696956,3.13221116,54438.0,54437.0,0.00263]
[1725827697249,3.14121116,54438.0,54437.0,0.00363]
[1725827698166,2.14491116,54438.0,54437.0,0.00363]
[1725827699329,2.08258669,54438.0,54437.0,0.00263]
[1725827699545,2.08258669,54438.0,54437.0,0.00363]
[1725827699748,2.09158669,54438.0,54437.0,0.00363]
[1725827699956,2.08358669,54438.0,54437.0,0.00263]
[1725827700158,2.08358669,54438.0,54437.0,0.00363]
[1725827700367,2.09158669,54438.0,54437.0,0.00363]
[1725827700779,2.09251173,54438.0,54437.0,0.00363]
[1725827702260,2.08351173,54438.0,54437.0,0.00263]
[1725827702689,2.09251173,54438.0,54437.0,0.00363]
[1725827702918,2.09451173,54438.0,54437.0,0.00263]
[1725827703135,2.08551173,54438.0,54437.0,0.00163]
[1725827703362,3.92786873,54438.0,54437.0,0.00263]
[1725827703588,3.70886873,54438.0,54437.0,0.00263]
[1725827703806,3.69126873,54438.0,54437.0,0.00363]
[1725827704012,3.03226873,54438.0,54437.0,0.00263]
[1725827704267,3.03326873,54438.0,54437.0,0.00263]
[1725827704477,3.04126873,54438.0,54437.0,0.00363]
[1725827704928,3.05326873,54438.0,54437.0,0.00263]
[1725827705163,1.322797,54430.0,54429.0,0.00163]
[1725827705382,2.17628432,54430.0,54429.0,0.00163]
[1725827705645,1.26579331,54421.0,54419.0,0.00163]
[1725827705860,1.74187051,54421.0,54419.0,0.00163]
[1725827706284,1.65979731,54421.0,54419.0,0.00163]
[1725827706495,1.66179731,54421.0,54419.0,0.00163]
[1725827706708,1.65979731,54421.0,54419.0,0.00163]
[1725827706928,1.66779731,54421.0,54420.0,0.002632]
[1725827707150,1.69961756,54421.0,54420.0,0.002632]
[1725827707360,1.7542977,54421.0,54420.0,0.003632]
[1725827707575,1.7532977,54421.0,54420.0,0.002632]
[1725827707789,1.7532977,54421.0,54420.0,0.001632]
[1725827708063,1.7702977,54421.0,54420.0,0.003632]
[1725827708744,1.56861556,54421.0,54420.0,0.003632]
[1725827709204,1.55161556,54421.0,54420.0,0.002632]
[1725827709485,1.70061756,54421.0,54420.0,0.001632]
[1725827709694,1.71061756,54421.0,54420.0,0.001632]
[1725827710145,1.70061756,54421.0,54420.0,0.001632]
[1725827710363,1.69961756,54421.0,54420.0,0.001632]
[1725827710821,1.69861756,54421.0,54420.0,0.001632]
[1725827711060,1.68861756,54421.0,54420.0,0.001632]
[1725827711295,1.71361756,54421.0,54420.0,0.001632]
[1725827712000,1.71561756,54421.0,54420.0,0.001632]
[1725827712676,1.74290911,54421.0,54420.0,0.001632]
[1725827715411,1.72990911,54421.0,54420.0,0.001632]
[1725827715603,1.77282955,54421.0,54420.0,0.001632]
[1725827715805,1.79582955,54421.0,54420.0,0.001632]
[1725827716206,1.77282955,54421.0,54420.0,0.001632]
[1725827716483,1.79082955,54421.0,54420.0,0.001632]
[1725827716689,1.78182955,54421.0,54420.0,0.001632]
[1725827717123,1.78582955,54421.0,54420.0,0.001632]
[1725827717337,1.79882955,54421.0,54420.0,0.001632]
[1725827717604,1.34504,54420.0,54419.0,0.00163]
[1725827717805,0.443046,54416.0,54406.0,0.0944]
[1725827718004,0.83384575,54416.0,54406.0,0.0944]
[1725827718217,2.00996975,54416.0,54406.0,0.0944]
[1725827718886,1.029276,54407.0,54406.0,0.0944]
[1725827719101,0.443127,54406.0,54405.0,5e-07]
[1725827719329,0.735347,54396.0,54395.0,0.00162]
[1725827719526,1.52051333,54396.0,54395.0,0.00162]
[1725827719767,1.423625,54396.0,54395.0,0.00162]
[1725827719996,1.49579902,54396.0,54395.0,0.00162]
[1725827721314,1.129486,54396.0,54395.0,0.00162]
[1725827721547,0.835347,54396.0,54395.0,0.16612]
[1725827721968,0.86765849,54396.0,54395.0,0.16612]
[1725827722186,0.13231149,54396.0,54395.0,0.17612]
[1725827722391,0.254069,54396.0,54395.0,0.17612]
[1725827722606,0.28289961,54396.0,54395.0,0.17612]
[1725827722831,0.247069,54396.0,54395.0,0.17612]
[1725827723030,0.249069,54396.0,54395.0,0.17612]
[1725827723485,0.248069,54396.0,54395.0,0.17612]
[1725827724575,0.27689943,54396.0,54395.0,0.17612]
[1725827724816,0.12983043,54396.0,54395.0,0.17612]
[1725827724991,0.27589943,54396.0,54395.0,0.17612]
[1725827725417,0.27689943,54396.0,54395.0,0.17612]
[1725827725623,0.12983043,54396.0,54395.0,0.17612]
[1725827725823,0.13083043,54396.0,54395.0,0.17612]
[1725827726039,0.27689943,54396.0,54395.0,0.17612]
[1725827726458,0.86617743,54396.0,54395.0,0.17612]
[1725827726888,0.86617743,54396.0,54395.0,0.16612]
[1725827727390,1.16031643,54396.0,54395.0,0.16612]
[1725827728097,1.130486,54396.0,54395.0,0.16612]
[1725827728296,1.129486,54396.0,54395.0,0.16612]
[1725827728514,1.131486,54396.0,54395.0,0.09602]
[1725827728961,1.129486,54396.0,54395.0,0.09602]
[1725827729168,1.130486,54396.0,54395.0,0.09602]
[1725827729581,1.204244,54396.0,54395.0,0.09602]
[1725827730442,1.203244,54396.0,54395.0,0.09602]
[1725827731906,1.129486,54396.0,54395.0,0.09602]
[1725827733403,1.1583189,54396.0,54395.0,0.09602]
[1725827734980,1.1593189,54396.0,54395.0,0.09602]
[1725827735185,1.1633189,54396.0,54395.0,0.09602]
[1725827735390,1.1593189,54396.0,54395.0,0.09602]
[1725827735596,1.1603189,54396.0,54395.0,0.09602]
[1725827735799,1.1593189,54396.0,54395.0,0.09602]
[1725827736018,1.1583189,54396.0,54395.0,0.09602]
[1725827736189,1.1603189,54396.0,54395.0,0.09602]
[1725827737011,1.1593189,54396.0,54395.0,0.16662]
[1725827737448,1.130486,54396.0,54395.0,0.16662]
[1725827737887,1.129486,54396.0,54395.0,0.16662]
[1725827738352,1.130486,54396.0,54395.0,0.16662]
[1725827738575,1.131486,54396.0,54395.0,0.16662]
[1725827738775,1.129486,54396.0,54395.0,0.16662]
[1725827739795,1.129486,54396.0,54395.0,0.17662]
[1725827739796,0.1,54396.0,54395.0,0.17662]
[1725827740095,0.247069,54396.0,54395.0,0.17662]
[1725827740285,0.836347,54396.0,54395.0,0.17662]
[1725827740668,0.86517937,54396.0,54395.0,0.17662]
[1725827741842,0.86617937,54396.0,54395.0,0.17662]
[1725827743602,0.57204037,54396.0,54395.0,0.17662]
[1725827745486,0.30281553,54396.0,54395.0,0.17662]
[1725827745731,0.74402353,54396.0,54395.0,0.16662]
[1725827745976,1.03816253,54396.0,54395.0,0.16662]
[1725827746188,0.74402353,54396.0,54395.0,0.16662]
[1725827746374,0.74402353,54396.0,54395.0,0.09602]
[1725827747467,0.84402353,54396.0,54395.0,0.09602]
[1725827748118,0.84302353,54396.0,54395.0,0.09602]
[1725827748335,0.84402353,54396.0,54395.0,0.09602]
[1725827748548,0.84302353,54396.0,54395.0,0.09602]
[1725827748783,0.84502353,54396.0,54395.0,0.09602]
[1725827749620,0.84402353,54396.0,54395.0,0.09602]
[1725827750044,0.84502353,54396.0,54395.0,0.09602]
[1725827751281,0.84402353,54396.0,54395.0,0.09602]
[1725827751932,0.84502353,54396.0,54395.0,0.09602]
[1725827752355,0.84402353,54396.0,54395.0,0.09602]
[1725827752835,0.84502353,54396.0,54395.0,0.09602]
[1725827753048,0.84302353,54396.0,54395.0,0.09602]
[1725827753254,0.84502353,54396.0,54395.0,0.09602]
[1725827753468,0.84483953,54396.0,54395.0,0.09602]
[1725827754338,0.84483953,54396.0,54395.0,0.00162]
[1725827754553,0.84383953,54396.0,54395.0,0.00162]
[1725827754971,0.89967322,54396.0,54395.0,0.00162]
[1725827755189,0.8996739,54396.0,54395.0,0.00162]
[1725827755450,0.88048287,54396.0,54395.0,0.00162]
[1725827755683,0.88248287,54396.0,54395.0,0.00162]
[1725827755897,0.88148287,54396.0,54395.0,0.00162]
[1725827756311,0.99212197,54396.0,54395.0,0.00162]
[1725827758464,0.84583953,54396.0,54395.0,0.00162]
[1725827758674,0.92814954,54396.0,54395.0,0.00162]
[1725827759305,0.84583953,54396.0,54395.0,0.00162]
[1725827759779,0.99407606,54396.0,54395.0,0.00162]
[1725827760143,0.99420745,54396.0,54395.0,0.00162]
[1725827760473,0.88443696,54396.0,54395.0,0.00162]
[1725827760912,0.99423443,54396.0,54395.0,0.00162]
[1725827761140,0.99401996,54396.0,54395.0,0.00162]
[1725827761358,0.88422279,54396.0,54395.0,0.00162]
[1725827762187,1.02146925,54396.0,54395.0,0.00162]
[1725827762413,1.17836179,54396.0,54395.0,0.00162]
[1725827762618,0.88422279,54396.0,54395.0,0.00162]
[1725827762818,1.17836179,54396.0,54395.0,0.00162]
[1725827763443,0.88422279,54396.0,54395.0,0.00162]
[1725827765827,0.88324573,54396.0,54395.0,0.00162]
[1725827766237,1.17738473,54396.0,54395.0,0.00162]
[1725827766892,0.88324573,54396.0,54395.0,0.00162]
[1725827767529,1.06850477,54396.0,54395.0,0.00162]
[1725827767744,1.36250045,54396.0,54395.0,0.00162]
[1725827767953,1.41989044,54396.0,54395.0,0.00162]
[1725827768391,1.36290979,54396.0,54395.0,0.00162]
[1725827768631,1.36190979,54396.0,54395.0,0.00162]
[1725827768846,1.28620979,54396.0,54395.0,0.00162]
[1725827769069,1.34218732,54396.0,54395.0,0.00162]
[1725827769261,1.17638473,54396.0,54395.0,0.00162]
[1725827769474,1.34118732,54396.0,54395.0,0.00162]
[1725827769625,1.17638473,54396.0,54395.0,0.00162]
[1725827769831,1.34119118,54396.0,54395.0,0.00162]
[1725827770412,1.28534824,54396.0,54395.0,0.00162]
[1725827770621,1.33993528,54396.0,54395.0,0.00162]
[1725827771149,1.17512069,54396.0,54395.0,0.00162]
[1725827771353,1.33995058,54396.0,54395.0,0.00162]
[1725827772125,1.28377678,54396.0,54395.0,0.00162]
[1725827774076,1.44862243,54396.0,54395.0,0.00162]
[1725827774522,1.28377678,54396.0,54395.0,0.00162]
[1725827774750,1.28377678,54396.0,54395.0,0.07522]
[1725827774969,1.44862093,54396.0,54395.0,0.07522]
[1725827775194,1.33996484,54396.0,54395.0,0.07522]
[1725827775425,1.44865656,54396.0,54395.0,0.07522]
[1725827775642,1.13997853,54396.0,54395.0,0.07522]
[1725827775885,1.28434658,54396.0,54395.0,0.07522]
[1725827778738,1.44916836,54396.0,54395.0,0.07522]
[1725827780306,1.28434658,54396.0,54395.0,0.07522]
[1725827780519,1.44916618,54396.0,54395.0,0.07522]
[1725827780762,1.44844185,54396.0,54395.0,0.07522]
[1725827781448,1.28362197,54396.0,54395.0,0.07522]
[1725827782391,1.44843914,54396.0,54395.0,0.07522]
[1725827783255,1.17542313,54396.0,54395.0,0.07522]
[1725827783480,1.3402403,54396.0,54395.0,0.07522]
[1725827783727,1.17688635,54396.0,54395.0,0.07522]
[1725827784386,1.34170406,54396.0,54395.0,0.07522]
[1725827788364,1.45076178,54396.0,54395.0,0.07522]
[1725827789301,1.28594407,54396.0,54395.0,0.07522]
[1725827789526,1.4508062,54396.0,54395.0,0.07522]
[1725827789751,1.28594407,54396.0,54395.0,0.07522]
[1725827790775,1.28515511,54396.0,54395.0,0.07522]
[1725827793460,1.28515511,54396.0,54395.0,0.00162]
[1725827795564,1.17839063,54396.0,54395.0,0.00162]
[1725827795771,1.28974276,54396.0,54395.0,0.00162]
[1725827797374,1.28974276,54396.0,54393.0,0.00162]
[1725827797375,0.735375,54394.0,54393.0,0.00162]
[1725827797594,0.8737871,54394.0,54393.0,0.00162]
[1725827798024,1.1679371,54394.0,54393.0,0.00162]
[1725827798640,0.90624265,54394.0,54393.0,0.00162]
[1725827799066,1.20139265,54394.0,54393.0,0.00162]
[1725827800182,1.20239265,54394.0,54393.0,0.00162]
[1725827800776,1.2015718,54394.0,54393.0,0.00162]
[1725827802270,1.22840658,54394.0,54393.0,0.00162]
[1725827803925,0.735387,54393.0,54392.0,0.1631]
[1725827804139,1.01042434,54393.0,54392.0,0.1631]
[1725827804521,1.01042539,54393.0,54392.0,0.1631]
[1725827805262,0.87297825,54393.0,54392.0,0.1631]
[1725827805470,0.87397825,54393.0,54392.0,0.1631]
[1725827805675,0.87497825,54393.0,54392.0,0.1631]
[1725827806962,0.87397825,54393.0,54392.0,0.1631]
[1725827807420,0.87497825,54393.0,54392.0,0.1631]
[1725827807635,0.87397825,54393.0,54392.0,0.1631]
[1725827808059,0.87497825,54393.0,54392.0,0.1631]
[1725827808259,0.87397825,54393.0,54392.0,0.1631]
[1725827810016,0.87497825,54393.0,54392.0,0.1631]
[1725827810879,0.65627075,54393.0,54392.0,0.1631]
[1725827811097,0.80334775,54393.0,54392.0,0.1631]
[1725827813146,0.80334775,54393.0,54392.0,0.16473]
[1725827813593,0.80416275,54393.0,54392.0,0.16473]
[1725827820557,0.83752039,54393.0,54392.0,0.16473]
[1725827821027,1.00252361,54393.0,54392.0,0.16473]